[Event "4NCL Div 2 2024-25"]
[Site "England"]
[Date "2025.02.15"]
[Round "5.8"]
[White "Grimmett, Ashton"]
[Black "Murawski, Jan"]
[Result "1/2-1/2"]
[Annotator "TA"]
[ECO "E01"]
[WhiteElo "1780"]
[BlackElo "2065"]
[PlyCount "136"]
[EventDate "2024.11.23"]
[EventType "team-tourn"]
[EventCountry "ENG"]
[SourceTitle "playchess.com"]
[Source "ChessBase"]
[SourceQuality "1"]
[TimeControl "40/6000+30:3000+30"]

{[%evp 9,136,-9,0,0,0,0,0,0,0,0,5,7,0,0,0,0,0,0,10,24,42,33,32,16,31,25,26,13,67,19,16,0,0,0,29,-92,-108,-50,27,29,29,32,25,25,27,27,27,27,27,7,3,0,15,5,11,0,44,24,87,76,135,138,144,138,156,148,157,166,239,220,280,262,339,341,502,469,570,568,579,580,570,579,578,585,585,570,655,637,615,578,458,321,298,291,291,284,284,0,277,266,269,269,661,545,637,635,722,644,1053,1027,1041,1041,1041,1041,1022,493,1022,1033,1294,656,600,479,470,0,0,0,0,0,0]} 1. d4 {[%emt 0:10:04]} Nf6 {[%emt 0:10:05]} 2. c4 {[%emt 0:00:07]} e6 {[%emt 0:00:02]} 3. g3 {[%emt 0:00:29]} d5 {[%emt 0:00:06]} 4. Nc3 {[%emt 0:00:10]} dxc4 {[%emt 0:03:01]} 5. Bg2 {[%emt 0:03:31]} c5 {[%emt 0:03:03]} 6. Qa4+ {[%emt 0:04:16] E01: Catalan: Early deviations.} Bd7 {[%emt 0:06:05]} 7. Qxc4 {[%emt 0:01:56]} Bc6 {[%emt 0:00:57]} 8. Bxc6+ {[%emt 0:00:58]} Nxc6 {[%emt 0:00:10]} 9. dxc5 {[%emt 0:00:16]} Qd4 {[%emt 0:01:47] Repels Be3} 10. Qb3 {[%emt 0:04:42]} Bxc5 $146 {[%emt 0:07:46]} ({Predecessor:} 10... Ng4 11. e3 Qd7 12. Nf3 Bxc5 13. O-O Nce5 14. Nxe5 Nxe5 15. Qa4 Qxa4 16. Nxa4 Bb4 {0-1 Verich,O (1082)-Osipov,A (1380) LSS RF-2011-0-00097}) 11. Be3 {[%emt 0:01:04]} Qb4 {[%emt 0:04:30]} 12. Bxc5 {[%emt 0:00:31]} Qxc5 {[%emt 0:01:26]} 13. Nf3 {[%emt 0:00:09]} e5 {[%emt 0:13:26][%cal Be6e5,Be5e4][%mdl 32]} 14. O-O {[%emt 0:03:03]} e4 {[%emt 0:07:01]} 15. Nd2 {[%emt 0:00:07]} (15. Qxb7 Rb8 16. Na4 Rxb7 $17 (16... Qd5 17. Qc7 $11)) 15... Qe7 {[%emt 0:00:50] Successful Defense Black} 16. Rad1 {[%emt 0:11:02][%cal Od2e4]} O-O {[%emt 0:04:14]} 17. Nc4 {[%emt 0:02:21]} Rad8 {[%emt 0:02:36]} 18. Ne3 {[%emt 0:01:53]} b6 {[%emt 0:08:34]} (18... g6 $11) 19. Ned5 {[%emt 0:03:13]} (19. Qa4 $14 Qe6 20. h3) 19... Nxd5 $11 {[%emt 0:02:30]} 20. Nxd5 {[%emt 0:00:14]} Qe5 {[%emt 0:01:31]} 21. Qc4 {[%emt 0:04:51]} Rd6 {[%emt 0:07:01][%cal Ob6b5]} 22. Rd2 {[%emt 0:01:17]} (22. Nc3 $11) 22... Rfd8 $17 {[%emt 0:04:25][%cal Rd6d5]} 23. Rfd1 {[%emt 0:00:14][%cal Oc4c1]} Qe6 {[%emt 0:01:18] [#]} (23... Kf8 $15 24. f3 exf3 25. exf3 Qe6) 24. Nf6+ $1 $11 {[%emt 0:11:53]} gxf6 {[%emt 0:07:48]} (24... Qxf6 $6 25. Qxc6 Rxd2 26. Rxd2 $16 (26. Qxe4 $2 Rxd1+ 27. Kg2 Qxb2 $19)) 25. Qxe6 {[%emt 0:00:11]} Rxe6 {[%emt 0:00:10]} 26. Rxd8+ {[%emt 0:00:07]} Nxd8 {[%emt 0:00:02]} 27. Rxd8+ {[%emt 0:00:13][%mdl 4096] Endgame KR-KR} Kg7 {[%emt 0:00:01]} 28. Rd7 {[%emt 0:03:55]} a6 {[%emt 0:01:48]} 29. Rd5 {[%emt 0:00:16]} Rc6 {[%emt 0:00:57]} 30. Rd2 {[%emt 0:02:48] Prevents Rc2.} a5 {[%emt 0:02:05]} 31. e3 {[%emt 0:01:16]} Rc5 {[%emt 0:03:06]} 32. a3 {[%emt 0:03:26]} Rc1+ {[%emt 0:01:46]} 33. Kg2 {[%emt 0:00:08]} Rb1 {[%emt 0:00:20]} (33... Rc5 $11 {keeps the balance.}) 34. g4 $16 {[%emt 0:02:35][%cal Bg3g4,Bg4h5][%mdl 32]} h5 {[%emt 0:01:58]} 35. gxh5 {[%emt 0:04:27]} b5 {[%emt 0:02:24]} 36. Kg3 {[%emt 0:00:00]} b4 {[%emt 0:00:21]} 37. axb4 {[%emt 0:00:31]} axb4 {[%emt 0:00:04]} 38. Kf4 {[%emt 0:00:07]} Rh1 {[%emt 0:01:28]} (38... b3 {was called for.} 39. Kxe4 Rc1) 39. Kxe4 $18 {[%emt 0:00:35]} Rxh2 {[%emt 0:00:05]} 40. Kd4 {[%emt 0:00:19]} Rxh5 {[%emt 0:00:19]} 41. Kc4 {[%emt 0:50:11]} Rh1 {[%emt 0:25:35]} (41... Rh8 $142 42. Rd4 (42. Kxb4 Rb8+ 43. Kc4 Rc8+ 44. Kb3 Kg6 $16) 42... Rc8+ 43. Kb3 (43. Kxb4 Rc2 $16) 43... f5 44. Rxb4 (44. Kxb4 Rc2 $16) 44... Kf6) 42. Kxb4 {[%emt 0:00:00]} Kg6 {[%emt 0:00:40]} 43. Kc3 {[%emt 0:00:00] [#]} Rc1+ {[%emt 0:01:41]} 44. Rc2 {[%emt 0:00:00]} Rb1 {[%emt 0:00:12]} 45. b4 {[%emt 0:00:00][%cal Bb2b4,Bb4b5][%mdl 32]} Kf5 {[%emt 0:00:11]} 46. Rb2 {[%emt 0:00:00]} Rc1+ {[%emt 0:00:12]} 47. Kd2 {[%emt 0:00:00]} Rc7 {[%emt 0:01:46]} 48. b5 {[%emt 0:00:00]} Ke5 {[%emt 0:00:51]} 49. Ke2 {[%emt 0:00:00]} Rb7 {[%emt 0:04:32]} 50. Kf3 {[%emt 0:00:00]} Rb6 {[%emt 0:00:12]} 51. Rb4 {[%emt 0:00:00]} f5 {[%emt 0:01:36]} 52. Kg3 {[%emt 0:00:00]} Rg6+ {[%emt 0:00:41]} 53. Kf3 {[%emt 0:00:00]} Rb6 {[%emt 0:00:05]} 54. Ke2 {[%emt 0:00:00]} Kd5 {[%emt 0:01:20]} 55. Kd3 {[%emt 0:00:00]} f6 $2 {[%emt 0:00:25]} (55... Kd6 56. Kc4 Rb7) 56. Kc3 {[%emt 0:00:00]} Kc5 {[%emt 0:01:53]} 57. Rf4 {[%emt 0:00:00]} Kxb5 {[%emt 0:00:14]} 58. Rxf5+ {[%emt 0:00:00]} Ka6 {[%emt 0:00:11]} 59. Kd4 {[%emt 0:00:00]} Kb7 {[%emt 0:00:56]} 60. Rc5 {[%emt 0:00:00]} Re6 {[%emt 0:02:04]} 61. f4 {[%emt 0:00:00]} Kb6 {[%emt 0:01:21]} 62. e4 {[%emt 0:00:00]} Rd6+ {[%emt 0:01:54]} (62... Re7 $142 63. Rh5 Kc6) 63. Rd5 {[%emt 0:00:00]} Re6 {[%emt 0:04:16]} 64. e5 {[%emt 0:00:00]} Kc6 {[%emt 0:04:19]} 65. Ke4 {[%emt 0:00:56] And now f5 would win.} fxe5 {[%emt 0:00:36]} 66. Rxe5 $2 {[%emt 0:01:25]} ({White should try} 66. f5 $18 Re7 67. Rd8 (67. Rxe5 Kd6 $11)) 66... Kd6 $11 {[%emt 0:00:14] The position is equal.} 67. Kd4 {[%emt 0:03:18]} Rxe5 {[%emt 0:00:07]} 68. fxe5+ {[%emt 0:00:04]} Ke6 {[%emt 0:00:05] Weighted Error Value: White=0.18 (very precise) /Black=0.36  Mistake:       	White=2     	Black=7      Inaccurate:     	---       	Black=2      OK:         	White=28    	Black=13     Best:        	White=5     	Black=9} 1/2-1/2

[Event "4NCL Div 2 2024-25"]
[Site "England"]
[Date "2025.02.15"]
[Round "5.9"]
[White "Pein, Jonathan"]
[Black "Mason, Donald J"]
[Result "1/2-1/2"]
[Annotator "ChessBase"]
[ECO "A38"]
[WhiteElo "2249"]
[BlackElo "2021"]
[PlyCount "109"]
[EventDate "2024.11.23"]
[EventType "team-tourn"]
[EventCountry "ENG"]
[SourceTitle "playchess.com"]
[Source "ChessBase"]
[SourceQuality "1"]
[TimeControl "40/6000+30:3000+30"]

1. Nf3 {[%emt 0:10:04]} Nf6 {[%emt 0:11:12]} 2. g3 {[%emt 0:00:04]} g6 {[%emt 0:00:27]} 3. b3 {[%emt 0:00:08]} Bg7 {[%emt 0:06:23]} 4. Bb2 {[%emt 0:00:07]} O-O {[%emt 0:00:31]} 5. Bg2 {[%emt 0:00:17]} c5 {[%emt 0:00:09]} 6. O-O {[%emt 0:02:37]} d6 {[%emt 0:03:12]} 7. c4 {[%emt 0:00:19]} e5 {[%emt 0:00:53]} 8. Nc3 {[%emt 0:00:33]} Nc6 {[%emt 0:00:49]} 9. Ne1 {[%emt 0:02:28]} Ne8 {[%emt 0:10:54]} 10. Nc2 {[%emt 0:03:15]} f5 {[%emt 0:07:15]} 11. Ne3 {[%emt 0:00:30]} f4 {[%emt 0:05:56]} 12. Ned5 {[%emt 0:00:04]} Nc7 {[%emt 0:06:52]} 13. a3 {[%emt 0:02:50]} Ne6 {[%emt 0:14:07]} 14. b4 {[%emt 0:00:50]} Ng5 {[%emt 0:03:13]} 15. Ne4 {[%emt 0:12:28]} Nxe4 {[%emt 0:09:38]} 16. Bxe4 {[%emt 0:00:03]} Bh3 {[%emt 0:00:10]} 17. Bg2 {[%emt 0:20:28]} Bxg2 {[%emt 0:03:50]} 18. Kxg2 {[%emt 0:00:03]} e4 {[%emt 0:00:44]} 19. Bxg7 {[%emt 0:11:59]} f3+ {[%emt 0:00:07]} 20. Kh1 {[%emt 0:00:02]} Kxg7 {[%emt 0:00:40]} 21. d3 {[%emt 0:00:55]} Nd4 {[%emt 0:06:12]} 22. e3 {[%emt 0:05:24]} Ne2 {[%emt 0:00:24]} 23. Nf4 {[%emt 0:09:55]} Rxf4 {[%emt 0:13:41]} 24. exf4 {[%emt 0:00:10]} Qd7 {[%emt 0:00:45]} 25. dxe4 {[%emt 0:01:35]} Qh3 {[%emt 0:01:26]} 26. Rg1 {[%emt 0:00:03]} Re8 {[%emt 0:00:36]} 27. Qd3 {[%emt 0:05:18]} Nd4 {[%emt 0:01:38]} 28. Rad1 {[%emt 0:01:52]} Re6 {[%emt 0:00:26]} 29. Qe3 {[%emt 0:01:43]} g5 {[%emt 0:00:26]} 30. fxg5 {[%emt 0:01:25]} Qg4 {[%emt 0:01:51]} 31. Rxd4 {[%emt 0:02:30]} cxd4 {[%emt 0:00:03]} 32. Qxd4+ {[%emt 0:00:06]} Kg8 {[%emt 0:01:09]} 33. Qd5 {[%emt 0:12:12]} Qxe4 {[%emt 0:00:22]} 34. Qxe4 {[%emt 0:01:07]} Rxe4 {[%emt 0:00:02]} 35. Rc1 {[%emt 0:02:26]} Re2 {[%emt 0:00:07]} 36. h3 {[%emt 0:01:51]} Rxf2 {[%emt 0:00:07]} 37. Rc3 {[%emt 0:00:34]} Rf1+ {[%emt 0:01:03]} 38. Kh2 {[%emt 0:00:07]} Rf2+ {[%emt 0:00:40]} 39. Kg1 {[%emt 0:00:57]} Rg2+ {[%emt 0:00:07]} 40. Kf1 {[%emt 0:00:12]} Rxg3 {[%emt 0:00:16]} 41. Rd3 {[%emt 0:50:27]} b5 {[%emt 0:33:01]} 42. cxb5 {[%emt 0:00:00]} Rxg5 {[%emt 0:03:53]} 43. Rxd6 {[%emt 0:00:00]} Rxb5 {[%emt 0:00:20]} 44. Rd8+ {[%emt 0:00:00]} Kf7 {[%emt 0:00:07]} 45. Rd7+ {[%emt 0:00:00]} Ke6 {[%emt 0:02:40]} 46. Rxa7 {[%emt 0:00:00]} Rh5 {[%emt 0:00:13]} 47. a4 {[%emt 0:00:00]} Kd6 {[%emt 0:02:16]} 48. b5 {[%emt 0:00:00]} Kc5 {[%emt 0:03:17]} 49. Ra6 {[%emt 0:00:00]} Rxh3 {[%emt 0:00:31]} 50. Rc6+ {[%emt 0:00:00]} Kb4 {[%emt 0:02:24]} 51. b6 {[%emt 0:00:00]} Ka5 {[%emt 0:01:23]} 52. b7 {[%emt 0:03:55]} Rh1+ {[%emt 0:00:28]} 53. Kf2 {[%emt 0:00:04]} Rb1 {[%emt 0:00:24]} 54. Rc7 {[%emt 0:00:26]} Ka6 {[%emt 0:00:28]} 55. Rxh7 {[%emt 0:00:33]} 1/2-1/2

[Event "4NCL Div 2 2024-25"]
[Site "England"]
[Date "2025.02.15"]
[Round "5.10"]
[White "Pal, Rohan"]
[Black "Mazurkiewicz, Michal"]
[Result "0-1"]
[Annotator "ChessBase"]
[ECO "B11"]
[WhiteElo "1970"]
[BlackElo "2259"]
[PlyCount "88"]
[EventDate "2024.11.23"]
[EventType "team-tourn"]
[EventCountry "ENG"]
[SourceTitle "playchess.com"]
[Source "ChessBase"]
[SourceQuality "1"]
[TimeControl "40/6000+30:3000+30"]

1. e4 {[%emt 0:10:03]} c6 {[%emt 0:28:07]} 2. Nf3 {[%emt 0:01:41]} d5 {[%emt 0:01:37]} 3. Nc3 {[%emt 0:00:05]} Bg4 {[%emt 0:00:16]} 4. h3 {[%emt 0:00:19]} Bxf3 {[%emt 0:00:05]} 5. Qxf3 {[%emt 0:00:04]} e6 {[%emt 0:00:07]} 6. d3 {[%emt 0:00:05]} Nd7 {[%emt 0:00:08]} 7. Bd2 {[%emt 0:01:47]} g6 {[%emt 0:00:10]} 8. g3 {[%emt 0:01:04]} Bg7 {[%emt 0:00:07]} 9. Bg2 {[%emt 0:01:45]} Qb6 {[%emt 0:00:08]} 10. Rb1 {[%emt 0:09:08]} Ne7 {[%emt 0:03:51]} 11. Qe2 {[%emt 0:04:43]} O-O {[%emt 0:00:36]} 12. O-O {[%emt 0:00:46]} Rae8 {[%emt 0:00:24]} 13. Kh2 {[%emt 0:02:24]} f5 {[%emt 0:00:44]} 14. f4 {[%emt 0:04:44]} d4 {[%emt 0:05:52]} 15. Nd1 {[%emt 0:00:29]} e5 {[%emt 0:00:10]} 16. Nf2 {[%emt 0:16:22]} exf4 {[%emt 0:15:30]} 17. gxf4 {[%emt 0:06:32]} Nd5 {[%emt 0:00:39]} 18. e5 {[%emt 0:07:14]} Qc5 {[%emt 0:12:36]} 19. b4 {[%emt 0:11:25]} Qb5 {[%emt 0:06:20]} 20. a4 {[%emt 0:02:56]} Qxa4 {[%emt 0:00:06]} 21. Ra1 {[%emt 0:04:05]} Qb5 {[%emt 0:01:47]} 22. Ra5 {[%emt 0:00:37]} Qb6 {[%emt 0:01:39]} 23. Bxd5+ {[%emt 0:00:34]} cxd5 {[%emt 0:00:03]} 24. Qf3 {[%emt 0:02:05]} Qc6 {[%emt 0:13:29]} 25. Qxd5+ {[%emt 0:01:37]} Qxd5 {[%emt 0:00:03]} 26. Rxd5 {[%emt 0:00:06]} Nb6 {[%emt 0:00:46]} 27. Rc5 {[%emt 0:07:42]} Rc8 {[%emt 0:00:40]} 28. Ra1 {[%emt 0:00:56]} a6 {[%emt 0:00:34]} 29. Raa5 {[%emt 0:03:37]} Rfd8 {[%emt 0:05:01]} 30. h4 {[%emt 0:03:05]} Bf8 {[%emt 0:00:08]} 31. Rxc8 {[%emt 0:00:05]} Rxc8 {[%emt 0:00:04]} 32. Ra2 {[%emt 0:00:07]} Nd5 {[%emt 0:00:13]} 33. b5 {[%emt 0:06:53]} axb5 {[%emt 0:00:16]} 34. Nh3 {[%emt 0:00:47]} h6 {[%emt 0:03:19]} 35. Ng1 {[%emt 0:00:09]} Bb4 {[%emt 0:01:17]} 36. Bc1 {[%emt 0:00:58]} Be7 {[%emt 0:00:17]} 37. Bd2 {[%emt 0:00:56]} Bxh4 {[%emt 0:00:25]} 38. Nf3 {[%emt 0:00:07]} Bf2 {[%emt 0:00:03]} 39. Rb2 {[%emt 0:01:17]} Rc5 {[%emt 0:08:39]} 40. e6 {[%emt 0:00:37]} Kg7 {[%emt 0:02:51]} 41. Ne5 {[%emt 0:21:44]} Be3 {[%emt 0:20:44]} 42. Bxe3 {[%emt 0:00:33]} dxe3 {[%emt 0:00:11]} 43. c4 {[%emt 0:00:56]} Nxf4 {[%emt 0:01:00]} 44. Rxb5 {[%emt 0:01:14]} Rxb5 {[%emt 0:00:18]} 0-1

[Event "4NCL Div 2 2024-25"]
[Site "England"]
[Date "2025.02.15"]
[Round "5.11"]
[White "Gallana, Marco"]
[Black "Talsma, Paul"]
[Result "1-0"]
[Annotator "TA"]
[ECO "D32"]
[WhiteElo "2216"]
[BlackElo "2083"]
[PlyCount "47"]
[EventDate "2024.11.23"]
[EventType "team-tourn"]
[EventCountry "ENG"]
[SourceTitle "playchess.com"]
[Source "ChessBase"]
[SourceQuality "1"]
[TimeControl "40/6000+30:3000+30"]

{[%evp 23,47,24,49,40,53,56,46,57,55,62,128,116,229,229,237,243,241,234,238,235,243,239,238,247,244,237]} 1. Nf3 {[%emt 0:10:58]} Nf6 {[%emt 0:10:09]} 2. c4 {[%emt 0:00:17]} c5 {[%emt 0:00:08]} 3. Nc3 {[%emt 0:00:07]} e6 {[%emt 0:00:59]} 4. e3 {[%emt 0:00:07]} Nc6 {[%emt 0:04:52]} 5. d4 {[%emt 0:00:09]} d5 {[%emt 0:00:15]} 6. cxd5 {[%emt 0:00:09]} exd5 {[%emt 0:00:30]} 7. Bb5 {[%emt 0:00:12]} Bd6 {[%emt 0:15:12]} 8. O-O {[%emt 0:00:41]} O-O {[%emt 0:00:49]} 9. dxc5 {[%emt 0:00:12]} Bxc5 {[%emt 0:00:10]} 10. b3 {[%emt 0:00:15]} a6 {[%emt 0:12:36]} 11. Bxc6 {[%emt 0:00:15]} bxc6 {[%emt 0:00:02]} 12. Bb2 {[%emt 0:00:15]} Bg4 {[%emt 0:14:52]} 13. Rc1 {[%emt 0:00:36] D32: Tarrasch Defence: Sidelines and lines without g3.} Ba7 {[%emt 0:05:47]} 14. h3 {[%emt 0:04:27]} Bh5 {[%emt 0:02:12]} 15. Ne2 $146 {[%emt 0:00:17] White is slightly better.} ({Predecessor:} 15. Na4 Rc8 16. Nc5 Re8 17. Qd3 Qd6 18. b4 Bb8 19. g4 Bg6 20. Qxa6 Nd7 21. Bd4 {½-½ Tsiganova,M (2221)-Fomina,T (2254) EST-ch (Women) 2008 (5)}) 15... Rc8 {[%emt 0:16:26]} 16. Nf4 {[%emt 0:05:22] aiming for Bxf6.} Bg6 {[%emt 0:01:49]} (16... Bxf3 $14 17. Qxf3 Re8) 17. Qe2 $1 $16 {[%emt 0:11:20] White is more active.} a5 {[%emt 0:01:29] [#]} (17... Be4 $16 {might work better.}) 18. Qa6 $1 $18 {[%emt 0:03:23][%csl LRa7,LRc6] White is clearly better.} Qb6 {[%emt 0:02:04]} 19. Qxb6 {[%emt 0:01:02]} Bxb6 {[%emt 0:00:01] [#]} 20. Ne5 $1 {[%emt 0:00:15]} c5 {[%emt 0:05:23]} 21. Nexg6 {[%emt 0:00:17]} fxg6 {[%emt 0:02:46]} 22. Bxf6 {[%emt 0:00:23]} gxf6 {[%emt 0:02:00]} 23. Nxd5 {[%emt 0:00:14]} Bd8 {[%emt 0:00:16]} 24. Rc4 {[%emt 0:01:17] White took control after the opening.   Weighted Error Value: White=0.00 (flawless) /Black=0.26 (precise)   Mistake:       	---       	Black=2      OK:         	White=9     	Black=3      Strong:       	White=2     	---} 1-0

[Event "4NCL Div 2 2024-25"]
[Site "England"]
[Date "2025.02.15"]
[Round "5.12"]
[White "Vaidyanathan, Adithya"]
[Black "Maciol, Ryszard"]
[Result "1-0"]
[Annotator "TA"]
[ECO "D37"]
[WhiteElo "1872"]
[BlackElo "2125"]
[PlyCount "143"]
[EventDate "2024.11.23"]
[EventType "team-tourn"]
[EventCountry "ENG"]
[SourceTitle "playchess.com"]
[Source "ChessBase"]
[SourceQuality "1"]
[TimeControl "40/6000+30:3000+30"]

{[%evp 9,143,29,29,22,33,29,35,40,32,27,40,41,37,24,55,53,53,31,27,23,30,26,28,31,38,33,83,30,112,112,142,70,68,76,79,85,78,63,72,69,70,73,59,21,15,6,22,0,1,9,35,0,8,0,0,0,0,0,37,11,12,8,12,0,0,0,0,0,0,0,0,0,0,0,0,0,0,0,0,0,0,0,0,-8,0,0,0,0,0,0,0,0,0,0,11,0,0,0,4,0,8,8,20,27,67,45,45,32,32,32,127,58,128,32,32,32,32,32,35,28,59,58,128,67,145,144,5081,66,61,64,4614,4606,1193,4614,654,4543]} 1. d4 {[%emt 0:10:03] ChessBase II} Nf6 {[%emt 0:10:10]} 2. Nf3 {[%emt 0:00:05]} e6 {[%emt 0:00:40]} 3. c4 {[%emt 0:00:05]} a6 {[%emt 0:00:23]} 4. Nc3 {[%emt 0:00:36]} d5 {[%emt 0:00:15]} 5. cxd5 {[%emt 0:00:08]} exd5 {[%emt 0:00:07]} 6. Bg5 {[%emt 0:00:05] D37: Queen's Gambit Declined: 5 Bf4.} Be6 {[%emt 0:00:41]} 7. e3 {[%emt 0:04:02]} c6 {[%emt 0:04:52]} 8. Qb3 {[%emt 0:04:31] White is slightly better.} b5 {[%emt 0:20:29]} 9. Qc2 {[%emt 0:02:20]} Nbd7 {[%emt 0:02:17]} 10. Bd3 {[%emt 0:18:40]} h6 {[%emt 0:05:35]} 11. Bh4 {[%emt 0:00:32]} Be7 {[%emt 0:04:55]} 12. O-O {[%emt 0:02:01]} O-O {[%emt 0:00:36]} 13. Rac1 $146 {[%emt 0:08:05]} ({Predecessor:} 13. a3 c5 14. dxc5 Nxc5 15. Nd4 Qd7 16. Be2 Rac8 17. Rac1 Nce4 18. Qd3 Nxc3 19. Rxc3 Rxc3 20. bxc3 {½-½ Steger,A (1990)-Krasnov,S (1862) San Francisco Neil Falconer op 2013 (7)}) 13... Rc8 {[%emt 0:07:43]} 14. a3 {[%emt 0:16:31]} c5 {[%emt 0:05:14]} 15. dxc5 {[%emt 0:02:51]} Nxc5 {[%emt 0:03:21]} 16. Rfd1 {[%emt 0:06:20]} Qb6 {[%emt 0:06:21]} 17. Nd4 {[%emt 0:07:58][%cal Od3h7]} b4 {[%emt 0:04:12]} (17... Nxd3 $14 18. Qxd3 Rc4) 18. Na4 {[%emt 0:09:19]} (18. axb4 $16 Nxd3 19. Qxd3) 18... Qa5 {[%emt 0:11:08]} (18... Nxa4 $11 19. Qxa4 Bd7) 19. axb4 $16 {[%emt 0:01:24]} Qxb4 {[%emt 0:04:30]} 20. Nxc5 {[%emt 0:00:38]} (20. Bh7+ $1 $16 Kh8 21. Bxf6 Nxa4 22. Bxe7 (22. Nc6 Rxc6 23. Bxe7 Rxc2 $11) 22... Qxe7 23. Qxa4 Kxh7 24. Qxa6) 20... Bxc5 {[%emt 0:10:16]} 21. Qb3 {[%emt 0:09:07]} (21. Bxa6 Bxd4 22. Bxc8 Rxc8 23. Qxc8+ (23. Rxd4 $2 Rxc2 24. Rf1 Qxb2 $19) 23... Bxc8 24. Rxc8+ (24. exd4 $2 Bg4 $19) 24... Kh7 25. exd4 Ne4 $11) 21... a5 {[%emt 0:02:49]} 22. Qxb4 {[%emt 0:01:36]} axb4 {[%emt 0:00:07]} 23. Ba6 {[%emt 0:01:39] White is much more active.} Bxd4 {[%emt 0:01:04]} 24. Bxc8 {[%emt 0:00:33]} (24. exd4 Rxc1 25. Rxc1 Bd7 $11) 24... Bxb2 {[%emt 0:01:34]} 25. Rb1 {[%emt 0:00:09]} (25. Rc2 $6 Bc3 26. Bxe6 fxe6) 25... Bc3 {[%emt 0:01:27]} 26. Bxf6 {[%emt 0:01:31]} gxf6 {[%emt 0:00:52]} 27. Bxe6 {[%emt 0:00:04]} fxe6 $14 {[%emt 0:00:09][%mdl 4096] Endgame KRR-KRB} 28. Kf1 {[%emt 0:01:04]} Kf7 {[%emt 0:00:12]} 29. Ke2 {[%emt 0:00:17]} Ra8 {[%emt 0:00:27]} 30. f4 {[%emt 0:00:52]} Ra5 {[%emt 0:00:40]} 31. h3 {[%emt 0:00:44]} Kg6 {[%emt 0:00:46]} 32. g4 {[%emt 0:00:43]} Ra2+ {[%emt 0:00:25]} 33. Kf3 {[%emt 0:00:03]} Rh2 {[%emt 0:00:27] [#]} 34. f5+ $1 {[%emt 0:00:37]} Kf7 {[%emt 0:00:49]} 35. fxe6+ {[%emt 0:00:33]} Kxe6 {[%emt 0:00:04]} 36. Rh1 {[%emt 0:00:07]} Ra2 {[%emt 0:00:40]} 37. h4 {[%emt 0:01:21]} Ra3 {[%emt 0:00:14]} 38. Rhd1 {[%emt 0:01:38]} b3 {[%emt 0:01:31]} 39. Rd3 {[%emt 0:00:09]} b2 {[%emt 0:00:23]} 40. Ke2 {[%emt 0:00:38]} Ra1 {[%emt 0:00:54]} 41. Rdd1 {[%emt 0:50:01]} Ra4 {[%emt 0:28:01]} 42. Rg1 {[%emt 0:00:00]} f5 {[%emt 0:02:24]} 43. Kd3 {[%emt 0:00:00]} Ra3 {[%emt 0:05:31]} 44. gxf5+ {[%emt 0:00:00]} Kxf5 {[%emt 0:00:13]} 45. Rbf1+ {[%emt 0:00:00]} Ke5 {[%emt 0:01:32]} 46. Ke2 {[%emt 0:00:00]} Rb3 {[%emt 0:02:16]} 47. h5 {[%emt 0:00:00]} Bb4 {[%emt 0:01:39]} 48. Rb1 {[%emt 0:02:05]} Bc5 {[%emt 0:04:37]} 49. Rg3 {[%emt 0:00:57]} Ke4 {[%emt 0:00:34][%cal Rc5e3]} 50. Rg4+ {[%emt 0:00:09]} Kf5 {[%emt 0:00:09]} 51. Rg3 {[%emt 0:00:13][%cal Oe3e4]} Ke5 {[%emt 0:04:51]} 52. Rf3 {[%emt 0:00:41]} Bd6 {[%emt 0:01:59]} 53. Rf4 {[%emt 0:01:14]} Ke6 {[%emt 0:00:56]} 54. Rg4 {[%emt 0:00:50]} Be5 {[%emt 0:01:34]} 55. Rg6+ {[%emt 0:00:35]} Ke7 {[%emt 0:01:20]} 56. Rxh6 {[%emt 0:00:26]} Rb4 {[%emt 0:00:15]} 57. Ra6 {[%emt 0:01:12] h6 would now be deadly.} Rc4 {[%emt 0:00:38] White must now prevent ...Rc1.} 58. Rg6 {[%emt 0:00:47]} Rh4 $1 {[%emt 0:00:42]} 59. h6 {[%emt 0:00:24]} Kf7 {[%emt 0:00:10]} ({Black should try} 59... Bf6 $14) 60. Rc6 {[%emt 0:00:31]} (60. Rb6 $16) 60... Bf6 {[%emt 0:00:19] [#]} (60... d4 $14) 61. Rd6 {[%emt 0:00:33]} (61. Kd3 $1 $16) 61... d4 {[%emt 0:00:32]} 62. exd4 {[%emt 0:00:32]} (62. Rxb2 Rh2+ 63. Kd3 Rxb2 $17) 62... Bxd4 {[%emt 0:00:43]} 63. Rf1+ {[%emt 0:00:18]} Ke7 {[%emt 0:00:27]} 64. Ra6 {[%emt 0:00:29]} Rf4 {[%emt 0:00:39] ( -> ...Rxf1)} 65. Rd1 {[%emt 0:00:33]} (65. Rxf4 b1=Q (65... b1=B 66. Rxd4 Bf5 67. Rh4 Bh7 68. Rb4 Bf5 69. Rb7+ Bd7 70. h7 Kf7 71. h8=Q Ke7 72. Qb8 Kf7 73. Rxd7#) 66. Rxd4 Qb5+ 67. Rd3 Qxa6 $19) 65... Rf6 {[%emt 0:00:41]} (65... Rh4 $14) 66. Ra4 {[%emt 0:00:43]} ({White should play} 66. Rxf6 $16 Kxf6 67. h7 (67. Rxd4 $2 {too greedy.} b1=Q $19)) 66... Re6+ {[%emt 0:00:17] [#]} 67. Kf3 $1 {[%emt 0:00:28]} Bh8 $2 {[%emt 0:00:48][%mdl 8192]} (67... Rb6 $16) 68. h7 $2 {[%emt 0:00:24]} (68. Re4 $18 Rxe4 69. Kxe4) 68... Rb6 $1 {[%emt 0:00:17]} 69. Ra8 {[%emt 0:00:34]} Rf6+ $2 {[%emt 0:00:25][%mdl 8192]} (69... Rb3+ $14 70. Kg2 Be5) 70. Kg4 $18 {[%emt 0:00:23] White is clearly winning.} Rd6 {[%emt 0:00:56]} 71. Re1+ {[%emt 0:00:28]} Re6 {[%emt 0:00:29]} 72. Rb1 {[%emt 0:00:13] Weighted Error Value: White=0.09 (flawless) /Black=0.13 (very precise)   Loses game:     	---       	Black=2      Missed win:     	White=1     	---        Mistake:       	White=5     	Black=5      Inaccurate:     	White=3     	Black=4      OK:         	White=23    	Black=21     Best:        	White=3     	Black=4      Strong:       	White=1     	Black=2} 1-0